fUST/lending_fUST_20250901
["ID","MTS","AMOUNT","RATE_DAILY","PERIOD"]
[382552976,1756665135552,-185.68294368,0.00016596,2]
[382552977,1756665135576,-91.04823542,0.00016597,2]
[382552978,1756665137543,-593.1792054,0.00016597,2]
[382552979,1756665137607,0.01,0.000165,2]
[382552980,1756665137629,4999.99,0.000165,2]
[382552981,1756665141567,-172.86117016,0.00016597,2]
[382552982,1756665145744,1905.8159685,0.000165,2]
[382552983,1756665147274,-319.93439119,0.00016597,2]
[382552984,1756665149065,-97.55776654,0.00016597,2]
[382552985,1756665161740,3094.2040315,0.000165,2]
[382552986,1756665161765,1905.7959685,0.000165,2]
[382552987,1756665169675,487.93439119,0.000165,2]
[382552988,1756665185292,7606.27964031,0.00015724,2]
[382552989,1756665185316,2393.72035969,0.00015724,2]
[382552990,1756665185404,5000.0,0.000165,2]
[382552991,1756665207747,2606.28964031,0.000165,2]
[382552992,1756665207770,960.72033654,0.000165,2]
[382552993,1756665257732,474.60781357,0.000163,2]
[382552994,1756665291574,1971.6353823,0.00015724,2]
[382552995,1756665331869,349.0,0.00016444,2]
[382552996,1756665338564,902.10300025,0.000163,2]
[382552997,1756665404134,-313.63736305,0.00016597,2]
[382552998,1756665405710,-275.99296136,0.00016597,2]
[382552999,1756665407054,1000.0,0.00015696,2]
[382553000,1756665407415,-238.27500175,0.00016597,2]
[382553001,1756665411524,-153.46117633,0.00016597,2]
[382553002,1756665413167,-200.0,0.00016597,2]
[382553003,1756665414611,981.36650249,0.000165,2]
[382553004,1756665415184,-266.59370059,0.00016597,2]
[382553005,1756665417262,-281.9412158,0.00016597,2]
[382553006,1756665420205,-224.66406432,0.00016597,2]
[382553007,1756665423864,-78.32912726,0.00016597,2]
[382553008,1756665436990,1177.1580938,0.000165,2]
[382553009,1756665452378,2183.41887105,0.000165,2]
[382553010,1756665452403,2816.58112895,0.000165,2]
[382553011,1756665474327,1079.99199774,0.00016196,2]
[382553015,1756665489247,6103.43687331,0.00015724,2]
[382553016,1756665489270,10000.01,0.00015724,2]
[382553017,1756665489293,3936.96389099,0.00015724,2]
[382553018,1756665489940,1820.70454333,0.000165,2]
[382553019,1756665498409,4242.34156568,0.000165,2]
[382553020,1756665498433,757.65843432,0.000165,2]
[382553022,1756665549418,749.2341924,0.000157,2]
[382553023,1756665566271,219.80021108,0.00016168,2]
[382553024,1756665566542,5000.0,0.000165,2]
[382553049,1756665675631,1126.355467,0.00013699,2]
[382553051,1756665682680,-233.58949047,0.00016596,2]
[382553052,1756665683575,151.0,0.00016499,2]
[382553053,1756665687481,-194.10088652,0.00016596,2]
[382553054,1756665687599,233.58949047,0.000165,2]
[382553055,1756665689660,-183.28086761,0.00016596,2]
[382553056,1756665691835,-306.99465509,0.00016596,2]
[382553058,1756665693483,-200.0,0.00016596,2]
[382553059,1756665695417,-455.85678183,0.00016596,2]
[382553060,1756665697132,-204.96010265,0.00016596,2]
[382553061,1756665710511,1603.76619805,0.000165,2]
[382553062,1756665727357,6885.29884448,0.0001567,2]
[382553063,1756665727379,1215.26767052,0.0001567,2]
[382553064,1756665727942,-163.18205561,0.00016573,2]
[382553065,1756665729662,-15.92132283,0.00016573,2]
[382553066,1756665729685,-179.10337844,0.00016581,2]
[382553067,1756665729707,-4.44376093,0.00016588,2]
[382553068,1756665731812,-174.65961751,0.00016588,2]
[382553069,1756665731834,-3.04506264,0.00016596,2]
[382553070,1756665733422,362.65051781,0.000165,2]
[382553071,1756665733448,-176.0583158,0.00016596,2]
[382553072,1756665755794,5000.0,0.000165,2]
[382553073,1756665764140,3422.09181167,0.000165,2]
[382553074,1756665764164,1577.90818833,0.000165,2]
[382553075,1756665772285,929.66343807,0.000165,2]
[382553076,1756665780567,377.70468015,0.000165,2]
[382553077,1756665796351,5000.0,0.000165,2]
[382553078,1756665801769,-152.85861368,0.00016588,2]
[382553079,1756665820786,2114.73369345,0.000165,2]
[382553080,1756665820810,2885.26630655,0.000165,2]
[382553081,1756665842296,155.47799131,0.00016266,2]
[382553082,1756665843671,-155.47799131,0.00016662,2]
[382553083,1756665850457,-173.81490188,0.00016597,2]
[382553084,1756665854297,-352.53882367,0.00016597,2]
[382553085,1756665856499,-216.20289512,0.00016597,2]
[382553086,1756665862441,-194.1144467,0.00016597,2]
[382553087,1756665866816,-286.02769626,0.00016597,2]
[382553088,1756665868396,408.17949089,0.00016167,2]
[382553089,1756665869514,-265.27243582,0.00016597,2]
[382553090,1756665872139,-157.13392345,0.00016597,2]
[382553091,1756665874848,-168.0,0.00016597,2]
[382553092,1756665876995,-178.37004141,0.00016597,2]
[382553093,1756665880720,-156.59033197,0.00016597,2]
[382553094,1756665880742,-56.61447698,0.00016662,2]
[382553095,1756665883679,-78.98559225,0.00016662,2]
[382553096,1756665893406,2546.62416299,0.000165,2]
[382553097,1756665910097,1370.4204351,0.00015682,2]
[382553098,1756665941442,790.108587,0.00015687,2]
[382553099,1756665947664,556.14161504,0.00016167,2]
[382553100,1756666011075,666.0,0.00015671,2]
[382553101,1756666077302,251.82,0.00025,30]
[382553102,1756666119820,621.79141112,0.00015665,2]
[382553103,1756666119842,2818.65328818,0.00015665,2]
[382553105,1756666128883,7181.35671182,0.00015665,2]
[382553106,1756666128906,2818.64328818,0.00015665,2]
[382553107,1756666152215,5000.0,0.000173,6]
[382553108,1756666172188,917.41674949,0.00016197,2]
[382553138,1756666232574,-228.02208226,0.00016573,2]
[382553140,1756666232583,-2939.97645021,0.00016594,2]
[382553142,1756666232596,-1200.0,0.00016594,2]
[382553144,1756666232611,-2939.97645019,0.00016595,2]
[382553146,1756666232620,-300.0,0.00016595,2]
[382553148,1756666232630,-300.0,0.00016595,2]
[382553150,1756666232639,-300.0,0.00016595,2]
[382553152,1756666232649,-300.0,0.00016595,2]
[382553154,1756666232658,-300.0,0.00016595,2]
[382553155,1756666232668,-2939.97645019,0.00016596,2]
[382553157,1756666232677,-2939.97645019,0.00016596,2]
[382553159,1756666232687,-2939.97645019,0.00016597,2]
[382553162,1756666232697,-500.0,0.00016661,2]
[382553164,1756666232707,-500.0,0.00016661,2]
[382553165,1756666232716,-500.0,0.00016661,2]
[382553168,1756666232726,-200.8299507,0.00016661,2]
[382553169,1756666232735,-769.73,0.00016661,2]
[382553172,1756666232744,-6713.22854046,0.00016662,2]
[382553174,1756666232759,-43286.77145954,0.00016662,2]
[382553176,1756666232768,-1000.0,0.00016662,2]
[382553178,1756666232778,-1000.0,0.00016662,2]
[382553180,1756666232787,-1000.0,0.00016662,2]
[382553182,1756666232796,-1000.0,0.00016662,2]
[382553184,1756666232806,-1000.0,0.00016662,2]
[382553186,1756666232815,-1000.0,0.00016662,2]
[382553188,1756666232824,-1000.0,0.00016662,2]
[382553190,1756666232834,-1000.0,0.00016662,2]
[382553192,1756666232844,-1000.0,0.00016662,2]
[382553194,1756666232854,-1121.84785891,0.00016662,2]
[382553196,1756666232864,-480.0,0.0001667,2]
[382553198,1756666232873,-480.0,0.0001667,2]
[382553200,1756666232882,-950.22978173,0.0001667,2]
[382553202,1756666232894,-79.00021827,0.0001667,2]
[382553204,1756666232903,-480.0,0.0001667,2]
[382553206,1756666232912,-1236.91,0.0001667,2]
[382553208,1756666232921,-480.0,0.0001667,2]
[382553210,1756666232931,-1386.55,0.0001667,2]
[382553212,1756666232940,-629.53150776,0.00016673,2]
[382553214,1756666232949,-253.16554278,0.00016673,2]
[382553216,1756666232959,-500.0,0.00016673,2]
[382553218,1756666232968,-500.0,0.00016673,2]
[382553220,1756666232978,-500.0,0.00016673,2]
[382553222,1756666232987,-500.0,0.00016673,2]
[382553224,1756666232996,-500.0,0.00016673,2]
[382553226,1756666233007,-500.0,0.00016673,2]
[382553228,1756666233017,-500.0,0.00016673,2]
[382553229,1756666233029,-500.0,0.00016673,2]
[382553232,1756666233039,-500.0,0.00016673,2]
[382553233,1756666233049,-500.0,0.00016673,2]
[382553236,1756666233060,-500.0,0.00016673,2]
[382553238,1756666233070,-500.0,0.00016673,2]
[382553239,1756666233080,-386.52954866,0.00016673,2]
[382553241,1756666233090,-53.46993137,0.00016673,2]
[382553244,1756666233102,-446.53006863,0.00016673,2]
[382553246,1756666233112,-54.89786739,0.00016673,2]
[382553248,1756666233124,-445.10213261,0.00016673,2]
[382553250,1756666233134,-500.0,0.00016673,2]
[382553252,1756666233144,-366.11593609,0.00016673,2]
[382553535,1756666238927,-173.96262513,0.0001666,2]
[382553537,1756666238936,-500.0,0.0001666,2]
[382553539,1756666238945,-326.03737487,0.0001666,2]
[382553541,1756666238957,-173.96262513,0.0001666,2]
[382553543,1756666238966,-500.0,0.0001666,2]
[382553545,1756666238976,-500.0,0.0001666,2]
[382553547,1756666238985,-500.0,0.0001666,2]
[382553549,1756666238994,-500.0,0.0001666,2]
[382553551,1756666239004,-500.0,0.0001666,2]
[382553553,1756666239013,-500.0,0.0001666,2]
[382553555,1756666239023,-500.0,0.0001666,2]
[382553557,1756666239032,-500.0,0.0001666,2]
[382553558,1756666239042,-500.0,0.0001666,2]
[382553561,1756666239051,-500.0,0.0001666,2]
[382553563,1756666239061,-500.0,0.0001666,2]
[382553565,1756666239070,-199.78820298,0.0001666,2]
[382553567,1756666239081,-500.0,0.0001666,2]
[382553569,1756666239090,-500.0,0.0001666,2]
[382553571,1756666239100,-500.0,0.0001666,2]
[382553573,1756666239109,-500.0,0.0001666,2]
[382553575,1756666239119,-500.0,0.0001666,2]
[382553577,1756666239128,-500.0,0.0001666,2]
[382553579,1756666239137,-500.0,0.0001666,2]
[382553580,1756666239147,-500.0,0.0001666,2]
[382553582,1756666239156,-500.0,0.0001666,2]
[382553584,1756666239165,-500.0,0.0001666,2]
[382553586,1756666239175,-344.22292042,0.0001666,2]
[382553588,1756666239185,-187.96819816,0.0001666,2]
[382553591,1756666239205,-312.03180184,0.0001666,2]
[382553593,1756666239215,-268.61755348,0.0001666,2]
[382553595,1756666239224,-500.0,0.0001666,2]
[382553597,1756666239234,-500.0,0.0001666,2]
[382553599,1756666239243,-500.0,0.0001666,2]
[382553601,1756666239252,-500.0,0.0001666,2]
[382553603,1756666239262,-500.0,0.0001666,2]
[382553605,1756666239271,-500.0,0.0001666,2]
[382553607,1756666239281,-500.0,0.0001666,2]
[382553609,1756666239290,-500.0,0.0001666,2]
[382553611,1756666239300,-500.0,0.0001666,2]
[382553613,1756666239309,-500.0,0.0001666,2]
[382553615,1756666239319,-500.0,0.0001666,2]
[382553617,1756666239328,-500.0,0.0001666,2]
[382553619,1756666239338,-500.0,0.0001666,2]
[382553621,1756666239347,-569.51857889,0.0001666,2]
[382553624,1756666239357,-500.0,0.0001666,2]
[382553625,1756666239366,-500.0,0.0001666,2]
[382553627,1756666239376,-500.0,0.0001666,2]
[382553629,1756666239385,-500.0,0.0001666,2]
[382553631,1756666239394,-500.0,0.0001666,2]
[382553633,1756666239403,-500.0,0.0001666,2]
[382553635,1756666239413,-500.0,0.0001666,2]
[382553637,1756666239422,-500.0,0.0001666,2]
[382553639,1756666239432,-500.0,0.0001666,2]
[382553641,1756666239442,-500.0,0.0001666,2]
[382553643,1756666239451,-500.0,0.0001666,2]
[382553645,1756666239460,-500.0,0.0001666,2]
[382553648,1756666239470,-500.0,0.0001666,2]
[382553650,1756666239479,-500.0,0.0001666,2]
[382553651,1756666239489,-500.0,0.0001666,2]
[382553654,1756666239498,-320.15767625,0.0001666,2]
[382553655,1756666239508,-500.0,0.0001666,2]
[382553657,1756666239518,-500.0,0.0001666,2]
[382553659,1756666239531,-500.0,0.0001666,2]
[382553662,1756666239542,-500.0,0.0001666,2]
[382553664,1756666239551,-500.0,0.0001666,2]
[382553666,1756666239561,-500.0,0.0001666,2]
[382553668,1756666239571,-500.0,0.0001666,2]
[382553670,1756666239580,-500.0,0.0001666,2]
[382553672,1756666239589,-500.0,0.0001666,2]
[382553673,1756666239600,-350.0,0.0001666,2]
[382553675,1756666239609,-500.0,0.0001666,2]
[382553677,1756666239618,-500.0,0.0001666,2]
[382553679,1756666239628,-500.0,0.0001666,2]
[382553681,1756666239637,-500.0,0.0001666,2]
[382553683,1756666239646,-500.0,0.0001666,2]
[382553685,1756666239655,-480.0,0.00016661,2]
[382553687,1756666239664,-480.0,0.0001667,2]
[382553689,1756666239674,-133.88406391,0.00016673,2]
[382553691,1756666239684,-500.0,0.00016673,2]
[382553693,1756666239693,-500.0,0.00016673,2]
[382553695,1756666239702,-502.1843914,0.00016673,2]
[382553697,1756666239713,-500.0,0.00016673,2]
[382553699,1756666239722,-500.0,0.00016673,2]
[382553701,1756666239731,-345.06,0.00016687,3]
[382553703,1756666239741,-979.62,0.00016694,2]
[382553705,1756666239751,-480.0,0.00016694,2]
[382553707,1756666239761,-480.0,0.00016694,2]
[382553709,1756666239770,-480.0,0.00016694,2]
[382553711,1756666239779,-362.37176543,0.00016694,2]
[382553713,1756666239788,-480.0,0.00016694,2]
[382553715,1756666239798,-480.0,0.00016694,2]
[382553717,1756666239808,-480.0,0.00016694,2]
[382553719,1756666239817,-480.0,0.00016694,2]
[382553720,1756666239826,-480.0,0.00016694,2]
[382553722,1756666239838,-631.34,0.00016694,2]
[382553726,1756666239848,-480.0,0.00016694,2]
[382553730,1756666239857,-480.0,0.00016694,2]
[382553734,1756666239866,-480.0,0.00016694,2]
[382553737,1756666239876,-480.0,0.00016694,2]
[382553742,1756666239885,-480.0,0.00016694,2]
[382553745,1756666239901,-480.0,0.00016694,2]
[382553749,1756666239911,-489.77,0.00016694,2]
[382553751,1756666239921,-480.0,0.00016694,2]
[382553755,1756666239931,-529.29,0.00016694,2]
[382553757,1756666239942,-480.0,0.00016694,2]
[382553760,1756666239952,-480.0,0.00016694,2]
[382553763,1756666239961,-729.43,0.00016694,2]
[382553766,1756666239971,-480.0,0.00016694,2]
[382553769,1756666239980,-480.0,0.00016694,2]
[382553772,1756666239990,-480.0,0.00016694,2]
[382553775,1756666240000,-739.99,0.00016694,2]
[382553777,1756666240011,-480.0,0.00016694,2]
[382553780,1756666240020,-480.0,0.00016694,2]
[382553783,1756666240030,-480.0,0.00016694,2]
[382553786,1756666240040,-480.0,0.00016694,2]
[382553789,1756666240049,-480.0,0.00016695,2]
[382553792,1756666240058,-480.0,0.00016695,2]
[382553795,1756666240068,-480.0,0.00016695,2]
[382553798,1756666240078,-1461.32,0.00016695,2]
[382553801,1756666240089,-480.0,0.00016695,2]
[382553804,1756666240099,-810.48,0.00016695,2]
[382553807,1756666240110,-962.71,0.00016695,2]
[382553810,1756666240119,-480.0,0.00016695,2]
[382553813,1756666240128,-782.37,0.00016695,2]
[382553816,1756666240139,-480.0,0.00016695,2]
[382553819,1756666240149,-491.61,0.00016695,2]
[382553823,1756666240159,-480.0,0.00016695,2]
[382553826,1756666240168,-486.85,0.00016695,2]
[382553829,1756666240178,-603.14,0.00016695,2]
[382553831,1756666240187,-748.53,0.00016695,2]
[382553834,1756666240197,-480.0,0.00016695,2]
[382553837,1756666240206,-480.0,0.00016695,2]
[382553840,1756666240216,-818.99,0.00016695,2]
[382553843,1756666240225,-1024.68,0.00016695,2]
[382553846,1756666240235,-588.16,0.00016695,2]
[382553849,1756666240244,-480.0,0.00016695,2]
[382553852,1756666240254,-742.86,0.00016695,2]
[382553855,1756666240263,-501.17,0.00016695,2]
[382553858,1756666240273,-724.98,0.00016695,2]
[382553861,1756666240283,-1030.41,0.00016695,2]
[382553864,1756666240294,-1001.0,0.00016695,2]
[382553867,1756666240303,-480.0,0.00016695,2]
[382553870,1756666240313,-480.0,0.00016695,2]
[382553873,1756666240323,-480.0,0.00016695,2]
[382553876,1756666240332,-480.0,0.00016695,2]
[382553879,1756666240343,-685.34,0.00016695,2]
[382553882,1756666240353,-480.0,0.00016695,2]
[382553885,1756666240363,-493.84,0.00016695,2]
[382553888,1756666240373,-480.0,0.00016695,2]
[382553891,1756666240383,-480.0,0.00016695,2]
[382553894,1756666240392,-505.24,0.00016695,2]
[382553897,1756666240402,-497.43,0.00016695,2]
[382553899,1756666240411,-994.57,0.00016695,2]
[382553902,1756666240420,-480.0,0.00016695,2]
[382553905,1756666240429,-480.0,0.00016695,2]
[382553908,1756666240439,-1779.89,0.00016695,2]
[382553911,1756666240448,-480.0,0.00016695,2]
[382553914,1756666240457,-836.52,0.00016695,2]
[382553917,1756666240467,-604.07,0.00016695,2]
[382553920,1756666240478,-869.39,0.00016695,2]
[382553923,1756666240487,-480.0,0.00016695,2]
[382553926,1756666240496,-498.24,0.00016695,2]
[382553929,1756666240506,-480.0,0.00016695,2]
[382553932,1756666240515,-1012.37,0.00016695,2]
[382553935,1756666240525,-480.0,0.00016695,2]
[382553938,1756666240534,-1344.9,0.00016695,2]
[382553942,1756666240544,-1243.82,0.00016695,2]
[382553945,1756666240554,-985.25,0.00016695,2]
[382553948,1756666240566,-480.0,0.00016695,2]
[382553951,1756666240575,-480.0,0.00016695,2]
[382553954,1756666240584,-480.0,0.00016695,2]
[382553957,1756666240594,-587.47,0.00016695,2]
[382553961,1756666240603,-1022.72,0.00016695,2]
[382553963,1756666240613,-543.35,0.00016695,2]
[382553966,1756666240623,-480.0,0.00016695,2]
[382553969,1756666240632,-2062.51,0.00016695,2]
[382553972,1756666240641,-797.04,0.00016695,2]
[382553975,1756666240651,-480.0,0.00016695,2]
[382553978,1756666240660,-287.38560881,0.00016695,2]
[382553981,1756666240670,-773.81,0.00016695,2]
[382553984,1756666240679,-1010.56,0.00016695,2]
[382553987,1756666240688,-480.0,0.00016695,2]
[382553990,1756666240698,-521.82,0.00016695,2]
[382553993,1756666240708,-1061.73,0.00016695,2]
[382553996,1756666240716,-766.62,0.00016695,2]
[382553999,1756666240726,-1897.83,0.00016695,2]
[382554002,1756666240735,-725.16,0.00016695,2]
[382554005,1756666240744,-480.0,0.00016695,2]
[382554008,1756666240755,-480.0,0.00016695,2]
[382554011,1756666240764,-480.0,0.00016695,2]
[382554014,1756666240774,-480.0,0.00016695,2]
[382554017,1756666240783,-480.0,0.00016695,2]
[382554020,1756666240792,-1173.59,0.00016695,2]
[382554022,1756666240801,-510.87,0.00016695,2]
[382554025,1756666240811,-480.0,0.00016695,2]
[382554027,1756666240820,-547.67707713,0.00016695,2]
[382554030,1756666240830,-480.0,0.00016695,2]
[382554033,1756666240840,-618.82,0.00016695,2]
[382554036,1756666240849,-804.06,0.00016696,2]
[382554039,1756666240859,-3599.12,0.00016696,2]
[382554042,1756666240868,-6013.89,0.00016696,2]
[382554045,1756666240877,-1563.83,0.00016696,2]
[382554048,1756666240887,-480.0,0.00016696,2]
[382554051,1756666240896,-1261.56,0.00016696,2]
[382554054,1756666240906,-868.94,0.00016696,2]
[382554057,1756666240915,-4994.37,0.00016696,2]
[382554060,1756666240924,-5041.24,0.00016696,2]
[382554063,1756666240933,-480.0,0.00016696,2]
[382554066,1756666240942,-639.98,0.00016696,2]
[382554069,1756666240951,-480.0,0.00016696,2]
[382554072,1756666240961,-1098.49,0.00016696,2]
[382554074,1756666240971,-302731.64276525,0.00016697,2]
[382554076,1756666240981,-3028.397421,0.00016697,2]
[382554078,1756666240990,-435.60249108,0.00016697,2]
[382554080,1756666240999,-325.97501638,0.00016697,2]
[382554082,1756666241010,-480.0,0.00016697,2]
[382554084,1756666241019,-480.0,0.00016697,2]
[382554087,1756666241028,-480.0,0.00016697,2]
[382554090,1756666241038,-480.0,0.00016697,2]
[382554092,1756666241048,-1029.14,0.00016697,2]
[382554096,1756666241058,-1040.21,0.00016697,2]
[382554098,1756666241067,-480.0,0.00016697,2]
[382554101,1756666241077,-210.11775553,0.00016697,2]
[382554104,1756666241086,-480.0,0.00016697,2]
[382554107,1756666241095,-480.0,0.00016697,2]
[382554110,1756666241104,-480.0,0.00016697,2]
[382554113,1756666241114,-480.0,0.00016697,2]
[382554116,1756666241124,-480.0,0.00016697,2]
[382554118,1756666241133,-480.0,0.00016697,2]
[382554122,1756666241143,-480.0,0.00016697,2]
[382554125,1756666241154,-480.0,0.00016697,2]
[382554128,1756666241163,-480.0,0.00016697,2]
[382554130,1756666241173,-480.0,0.00016697,2]
[382554132,1756666241183,-480.0,0.00016697,2]
[382554134,1756666241191,-480.0,0.00016697,2]
[382554135,1756666241201,-480.0,0.00016697,2]
[382554137,1756666241212,-773.18,0.00016697,2]
[382554139,1756666241221,-480.0,0.00016697,2]
[382554141,1756666241231,-480.0,0.00016697,2]
[382554143,1756666241239,-480.0,0.00016697,2]
[382554145,1756666241250,-480.0,0.00016697,2]
[382554147,1756666241261,-480.0,0.00016697,2]
[382554149,1756666241270,-480.0,0.00016697,2]
[382554151,1756666241279,-480.0,0.00016697,2]
[382554153,1756666241288,-480.0,0.00016697,2]
[382554155,1756666241298,-480.0,0.00016697,2]
[382554157,1756666241308,-480.0,0.00016697,2]
[382554159,1756666241318,-480.0,0.00016697,2]
[382554161,1756666241328,-480.0,0.00016697,2]
[382554163,1756666241337,-599.13,0.00016697,2]
[382554165,1756666241346,-480.0,0.00016697,2]
[382554167,1756666241356,-578.41,0.00016697,2]
[382554169,1756666241365,-480.0,0.00016697,2]
[382554171,1756666241375,-480.0,0.00016697,2]
[382554173,1756666241383,-183.82996849,0.00016697,2]
[382554175,1756666241394,-480.0,0.00016697,2]
[382554177,1756666241405,-480.0,0.00016697,2]
[382554179,1756666241414,-480.0,0.00016697,2]
[382554181,1756666241423,-480.0,0.00016697,2]
[382554183,1756666241433,-480.0,0.00016697,2]
[382554185,1756666241442,-480.0,0.00016697,2]
[382554187,1756666241451,-480.0,0.00016697,2]
[382554189,1756666241460,-480.0,0.00016697,2]
[382554191,1756666241469,-480.0,0.00016697,2]
[382554193,1756666241478,-480.0,0.00016697,2]
[382554195,1756666241487,-480.0,0.00016697,2]
[382554197,1756666241497,-480.0,0.00016697,2]
[382554199,1756666241506,-480.0,0.00016697,2]
[382554201,1756666241515,-480.0,0.00016697,2]
[382554221,1756666241701,-480.0,0.00016697,2]
[382554223,1756666241711,-480.0,0.00016697,2]
[382554224,1756666241720,-834.99,0.00016697,2]
[382554225,1756666241729,-480.0,0.00016697,2]
[382554226,1756666241739,-491.55237605,0.00016697,2]
[382554227,1756666241749,-480.0,0.00016697,2]
[382554228,1756666241760,-480.0,0.00016697,2]
[382554229,1756666241769,-480.0,0.00016697,2]
[382554230,1756666241779,-480.0,0.00016697,2]
[382554231,1756666241788,-480.0,0.00016697,2]
[382554232,1756666241798,-480.0,0.00016697,2]
[382554233,1756666241808,-620.91725656,0.00016697,2]
[382554234,1756666241817,-480.0,0.00016697,2]
[382554235,1756666241827,-1131.92,0.00016697,2]
[382554236,1756666241836,-480.0,0.00016697,2]
[382554237,1756666241845,-480.0,0.00016697,2]
[382554238,1756666241855,-500.0,0.00016697,2]
[382554239,1756666241864,-916.59,0.00016697,2]
[382554240,1756666241874,-480.0,0.00016697,2]
[382554241,1756666241883,-750.53,0.00016697,2]
[382554242,1756666241899,-480.0,0.00016697,2]
[382554243,1756666241908,-480.0,0.00016697,2]
[382554244,1756666241918,-558.42,0.00016697,2]
[382554245,1756666241928,-480.0,0.00016697,2]
[382554246,1756666241938,-480.0,0.00016697,2]
[382554247,1756666241947,-614.94830813,0.00016697,2]
[382554248,1756666241957,-480.0,0.00016697,2]
[382554249,1756666241967,-480.0,0.00016697,2]
[382554250,1756666241976,-480.0,0.00016697,2]
[382554251,1756666241986,-776.49,0.00016697,2]
[382554252,1756666241995,-480.0,0.00016697,2]
[382554253,1756666242004,-480.0,0.00016697,2]
[382554254,1756666242014,-500.0,0.00016697,2]
[382554255,1756666242023,-405.51587298,0.00016697,2]
[382554256,1756666242033,-647.25,0.00016697,2]
[382554257,1756666242042,-480.0,0.00016697,2]
[382554258,1756666242052,-480.0,0.00016697,2]
[382554259,1756666242061,-480.0,0.00016697,2]
[382554260,1756666242071,-506.84,0.00016697,2]
[382554261,1756666242081,-480.0,0.00016697,2]
[382554263,1756666242090,-480.0,0.00016697,2]
[382554265,1756666242100,-480.0,0.00016697,2]
[382554267,1756666242109,-973.22,0.00016697,2]
[382554269,1756666242119,-480.0,0.00016697,2]
[382554271,1756666242128,-1491.78,0.00016697,2]
[382554273,1756666242140,-480.0,0.00016697,2]
[382554275,1756666242149,-545.46,0.00016697,2]
[382554277,1756666242159,-480.0,0.00016697,2]
[382554279,1756666242168,-480.0,0.00016697,2]
[382554281,1756666242178,-1238.5,0.00016697,2]
[382554283,1756666242187,-480.0,0.00016697,2]
[382554285,1756666242197,-480.0,0.00016697,2]
[382554287,1756666242208,-480.0,0.00016697,2]
[382554289,1756666242218,-480.0,0.00016697,2]
[382554291,1756666242227,-480.0,0.00016697,2]
[382554293,1756666242237,-705.72,0.00016697,2]
[382554295,1756666242246,-1167.0,0.00016697,2]
[382554297,1756666242256,-480.0,0.00016697,2]
[382554299,1756666242265,-480.0,0.00016697,2]
[382554301,1756666242275,-480.0,0.00016697,2]
[382554303,1756666242285,-480.0,0.00016697,2]
[382554305,1756666242294,-967.2,0.00016697,2]
[382554307,1756666242303,-1108.12,0.00016697,2]
[382554309,1756666242312,-480.0,0.00016697,2]
[382554311,1756666242322,-480.0,0.00016697,2]
[382554313,1756666242332,-808.37,0.00016697,2]
[382554315,1756666242341,-480.0,0.00016697,2]
[382554317,1756666242351,-480.0,0.00016697,2]
[382554319,1756666242361,-975.4,0.00016697,2]
[382554321,1756666242370,-802.68,0.00016697,2]
[382554323,1756666242379,-480.0,0.00016697,2]